[Event "Fagernes GM Open Autumn 2024"]
[Site "Fagernes"]
[Date "2024.10.12"]
[Round "8.5"]
[White "Urkedal, Frode Olav Olsen"]
[Black "Aizenberg, Benny"]
[Result "1-0"]
[ECO "D78"]
[WhiteElo "2559"]
[BlackElo "2423"]
[Annotator "TA"]
[PlyCount "147"]
[EventDate "2024.10.03"]
[EventType "swiss"]
[EventCountry "NOR"]
[SourceTitle "playchess.com"]
[Source "ChessBase"]
[SourceQuality "1"]
[TimeControl "40/6000:2400+30"]

{[%evp 47,147,0,11,0,2,0,29,38,39,47,43,37,51,39,45,38,41,56,61,51,58,40,53,45,32,30,39,22,15,0,0,0,0,0,0,0,0,0,0,0,0,0,0,0,0,0,0,0,0,0,0,0,0,0,0,0,0,0,0,0,0,0,0,0,0,0,527,543,739,592,2008,2008,8292,7758,6552,6180,5365,1770,1575,1507,29973,29974,29976,29976,29977,29978,29971,29973,29976,29977,29981,29982,29985,29986,29986,29987,29987,29988,29990,29991,29991,29992]} 1. d4 {[%emt 0:00:45]} Nf6 {[%emt 0:00:00]} 2. c4 {[%emt 0:00:00]} g6 {[%emt 0:00:00]} 3. g3 {[%emt 0:02:36]} c6 {[%emt 0:00:00]} 4. Nf3 {[%emt 0:00:06]} Bg7 {[%emt 0:00:00]} 5. Bg2 {[%emt 0:00:07]} O-O {[%emt 0:00:00]} 6. O-O {[%emt 0:00:12]} d5 {[%emt 0:00:00]} 7. Qa4 {[%emt 0:01:27]} Nbd7 {[%emt 0:06:17]} 8. cxd5 {[%emt 0:00:00] D78: Fianchetto Grünfeld: 6 0-0 c6.} Nb6 {[%emt 0:00:06]} 9. Qd1 {[%emt 0:00:09]} cxd5 {[%emt 0:00:56]} 10. b3 {[%emt 0:02:02]} Bf5 {[%emt 0:06:11]} 11. Nc3 {[%emt 0:00:51]} Rc8 {[%emt 0:05:17]} 12. Bb2 {[%emt 0:00:00]} Ne4 {[%emt 0:00:00]} 13. Rc1 {[%emt 0:00:00]} Nxc3 {[%emt 0:13:24]} 14. Bxc3 {[%emt 0:00:00]} Be4 {[%emt 0:00:00]} 15. Bh3 $146 {[%emt 0:00:33]} ({Predecessor:} 15. Ne1 Bh6 16. Bd2 Bg7 17. Bc3 Bxg2 18. Kxg2 Nd7 19. Nf3 Qb6 20. Qd3 Rc6 21. Bb2 {½-½ Iagar,R (2141)-Orfali,M (2040) Madrid Codes Memorial 3rd 2009 (6)}) 15... e6 {[%emt 0:05:00]} 16. Ne5 {[%emt 0:03:43]} h5 {[%emt 0:06:17]} 17. Bb4 {[%emt 0:06:16]} Re8 {[%emt 0:01:32]} 18. Qd2 {[%emt 0:03:47]} Bf5 {[%emt 0:10:45]} 19. Bg2 {[%emt 0:00:00]} Rxc1 {[%emt 0:05:04]} 20. Rxc1 {[%emt 0:00:00]} Qb8 {[%emt 0:00:00]} 21. h3 {[%emt 0:03:33]} f6 {[%emt 0:13:13]} 22. Nf3 {[%emt 0:07:39]} g5 {[%emt 0:00:01]} 23. h4 {[%emt 0:01:07]} g4 {[%emt 0:00:13]} 24. Ne1 {[%emt 0:00:00]} Rc8 {[%emt 0:00:31]} 25. Rxc8+ {[%emt 0:04:04]} Qxc8 {[%emt 0:00:00]} 26. Nd3 {[%emt 0:00:00]} Bxd3 {[%emt 0:01:10]} 27. Qxd3 {[%emt 0:00:00]} f5 {[%emt 0:00:00]} (27... Qc1+ 28. Bf1 Qc7 29. Ba5 $11 (29. Qg6 Qf7 $16)) 28. Qe3 {[%emt 0:00:16]} Kh7 {[%emt 0:01:08]} 29. Bf1 {[%emt 0:11:14]} Bh6 {[%emt 0:02:19]} 30. Qe5 {[%emt 0:00:00]} Bg7 {[%emt 0:00:00]} 31. Qd6 {[%emt 0:00:44]} Qd7 {[%emt 0:05:58]} 32. Qb8 {[%emt 0:00:25]} a6 {[%emt 0:03:29]} 33. e3 {[%emt 0:02:03]} Nc8 {[%emt 0:00:00]} 34. a4 {[%emt 0:02:34]} Bf6 {[%emt 0:01:26]} 35. Bc5 {[%emt 0:00:18]} Be7 {[%emt 0:00:33]} 36. b4 {[%emt 0:08:28]} Bd6 {[%emt 0:02:29]} 37. Qa8 {[%emt 0:02:25]} Qc7 {[%emt 0:01:32]} 38. b5 {[%emt 0:05:24]} axb5 {[%emt 0:00:21]} 39. axb5 {[%emt 0:00:00]} b6 {[%emt 0:02:26]} 40. Bxd6 {[%emt 0:00:37]} Nxd6 {[%emt 0:00:00]} 41. Qf8 {[%emt 0:41:08]} Ne4 {[%emt 0:11:49]} 42. Bg2 {[%emt 0:00:00]} Nd6 {[%emt 0:03:23]} 43. Kh2 {[%emt 0:00:00]} Qd7 $1 {[%emt 0:00:10]} 44. Bf1 {[%emt 0:00:00]} Ne4 {[%emt 0:07:23]} 45. Kg2 {[%emt 0:00:00]} Nd6 {[%emt 0:00:05]} 46. Bd3 {[%emt 0:00:00]} Qc7 {[%emt 0:00:16]} 47. Qf6 {[%emt 0:00:00]} Qd7 $1 {[%emt 0:00:16]} 48. Qg5 {[%emt 0:00:00]} Qe8 $1 {[%emt 0:00:31]} 49. Qf6 {[%emt 0:00:00]} Qd7 {[%emt 0:00:59]} 50. Qf8 {[%emt 0:00:00]} Qc7 {[%emt 0:00:13]} 51. Kh2 {[%emt 0:00:00]} Qd7 $1 {[%emt 0:03:05]} 52. Kg1 {[%emt 0:00:00]} Qc7 {[%emt 0:00:40]} 53. Kg2 {[%emt 0:00:00]} Qd7 {[%emt 0:00:14]} 54. Be2 {[%emt 0:00:00]} Qc7 {[%emt 0:02:48]} 55. Qf6 {[%emt 0:00:00]} Qd7 $1 {[%emt 0:00:06]} 56. Bd3 {[%emt 0:04:24]} Ne4 $2 {[%emt 0:01:06][%mdl 8192]} (56... Qe8 $11) 57. Bxe4 $18 {[%emt 0:01:00]} fxe4 {[%emt 0:00:15]} 58. Qf8 {[%emt 0:00:07]} Kg6 {[%emt 0:15:45]} 59. Qg8+ {[%emt 0:00:32]} Qg7 {[%emt 0:00:04]} 60. Qxe6+ {[%emt 0:00:13]} Qf6 {[%emt 0:00:03]} 61. Qg8+ {[%emt 0:02:18]} Kh6 {[%emt 0:00:54]} 62. Qxd5 {[%emt 0:00:19]} Qf3+ {[%emt 0:00:19]} 63. Kg1 {[%emt 0:00:06]} Qd1+ {[%emt 0:00:15]} 64. Kh2 {[%emt 0:00:05]} Qf1 {[%emt 0:00:04]} 65. Qg5+ {[%emt 0:00:12]} (65. Qxe4 Qxf2+ 66. Qg2 Qxe3 $11) 65... Kh7 {[%emt 0:00:06]} 66. Qxh5+ {[%emt 0:00:05]} Kg7 {[%emt 0:00:05]} 67. Qxg4+ {[%emt 0:00:05]} Kh8 {[%emt 0:00:05]} 68. Qf5 {[%emt 0:00:17]} Kg8 {[%emt 0:00:42]} 69. h5 {[%emt 0:00:10]} Kg7 {[%emt 0:00:03]} 70. Qg6+ {[%emt 0:00:21]} Kf8 {[%emt 0:00:36]} 71. Qf6+ {[%emt 0:00:10]} Ke8 {[%emt 0:00:05]} 72. h6 {[%emt 0:00:27]} Qd1 {[%emt 0:02:23]} 73. h7 {[%emt 0:00:12]} ({Inferior is} 73. Qxb6 Qh5+ 74. Kg2 Qf3+ 75. Kg1 Qd1+ 76. Kg2 Qf3+ 77. Kh2 (77. Kg1 Qd1+ 78. Kg2 Qf3+ $11) 77... Qh5+ 78. Kg2 Qf3+ $11) 73... Qh5+ {[%emt 0:00:05]} 74. Qh4 {[%emt 0:00:04]} 1-0

[Event "Fagernes GM Open Autumn 2024"]
[Site "Fagernes"]
[Date "2024.10.12"]
[Round "8.6"]
[White "Kanyamarala, Tarun"]
[Black "Raja Rithvik R"]
[Result "0-1"]
[ECO "D37"]
[WhiteElo "2369"]
[BlackElo "2514"]
[Annotator "TA"]
[PlyCount "64"]
[EventDate "2024.10.03"]
[EventType "swiss"]
[EventCountry "NOR"]
[SourceTitle "playchess.com"]
[Source "ChessBase"]
[SourceQuality "1"]
[TimeControl "40/6000:2400+30"]

{[%evp 9,64,29,39,26,27,27,28,27,33,26,30,29,33,26,68,35,30,27,38,26,61,26,58,68,91,86,95,77,108,0,0,0,0,-83,-84,-113,-10,-252,-256,-279,-285,-271,-284,-269,-56,-117,-122,-370,-434,-444,-450,-2671,-2340,-29976,-29978,-5522,-5514]} 1. d4 {[%emt 0:00:00]} d5 {[%emt 0:00:00]} 2. c4 {[%emt 0:00:00]} e6 {[%emt 0:00:00]} 3. Nc3 {[%emt 0:00:00]} h6 {[%emt 0:00:00]} 4. Nf3 {[%emt 0:00:00]} Nf6 {[%emt 0:00:00]} 5. Bf4 {[%emt 0:00:00]} Bd6 {[%emt 0:00:00]} 6. Bxd6 {[%emt 0:00:00]} Qxd6 {[%emt 0:00:00]} 7. e3 {[%emt 0:00:00]} O-O {[%emt 0:00:00]} 8. c5 {[%emt 0:00:00] Weiß hat minimalen Vorteil.} Qe7 {[%emt 0:00:00]} 9. Be2 {[%emt 0:00:00]} Nbd7 {[%emt 0:00:00]} 10. O-O {[%emt 0:00:00]} c6 {[%emt 0:00:00]} 11. b4 {[%emt 0:00:00]} Re8 {[%emt 0:01:20]} 12. Qc2 {[%emt 0:00:00]} e5 {[%emt 0:01:11]} 13. Rfe1 {[%emt 0:00:00]} e4 {[%emt 0:09:13]} 14. Nd2 {[%emt 0:00:09]} Nh7 {[%emt 0:06:24]} 15. a4 {[%emt 0:02:27][%cal Ba2a4,Ba4a5][%mdl 32]} Qg5 {[%emt 0:06:46]} 16. b5 {[%emt 0:06:50]} Ndf6 {[%emt 0:04:11]} 17. a5 {[%emt 0:13:54]} a6 {[%emt 0:03:46]} 18. bxc6 {[%emt 0:01:36]} bxc6 {[%emt 0:00:00]} 19. Nf1 {[%emt 0:38:37]} (19. Rab1 $16) 19... h5 $11 {[%emt 0:05:07]} 20. Kh1 {[%emt 0:07:35]} Qh4 {[%emt 0:11:36]} 21. Bd1 {[%emt 0:01:51]} (21. Qa4 $11 {hält das Gleichgewicht.}) 21... Ng5 $17 {[%emt 0:02:29]} 22. Rb1 {[%emt 0:00:41]} Re6 {[%emt 0:16:20]} (22... Bg4 $17 {[%cal Og4f3] Und ...Bf3! würde nun gewinnen.} 23. Kg1 Bf3 24. Bxf3 (24. gxf3 $2 exf3 25. Bxf3 Nxf3+ 26. Kg2 Qg4+ 27. Ng3 Nh4+ 28. Kf1 Qh3+ 29. Ke2 Ng4 $19) 24... exf3 25. gxf3 Nxf3+ 26. Kg2 Qg4+ (26... Nxe1+ $2 27. Rxe1 Rab8 28. h3 $19) 27. Ng3 Nh4+ (27... Nxe1+ $2 28. Rxe1 Rab8 29. h3 $19) 28. Kf1 Qh3+ 29. Ke2 Ng4 (29... Qxh2 30. Rh1 $11)) 23. Kg1 $2 {[%emt 0:10:01]} (23. Ng3 $11 {und Weiss steht sicher.} Ng4 24. Bxg4 hxg4 25. Rg1 (25. Nf5 $2 Qh7 $19)) 23... Ng4 $1 $19 {[%emt 0:05:14] Droht stark ...Rg6.} 24. f4 {[%emt 0:02:02] [#] Und jetzt Bxg4 wäre schön.} exf3 $1 {[%emt 0:06:48]} (24... Qxe1 $2 {verliert.} 25. Bxg4 (25. fxg5 $2 {geht unter.} Nxe3 26. Qf2 Qxc3 $19) 25... Qh4 26. Bxe6 Nxe6 27. Rb6 $16) 25. Bxf3 {[%emt 0:00:00]} Rf6 {[%emt 0:02:31]} 26. Bxg4 {[%emt 0:00:00]} hxg4 {[%emt 0:00:00]} ({Schwächer ist} 26... Bxg4 27. Ng3 $15) (26... Qxg4 $19 27. Kh1 Bf5) 27. e4 {[%emt 0:04:26]} ({Besser ist} 27. Ra1 $15) 27... dxe4 $17 {[%emt 0:00:53][%cal Oe4e3] Zielt auf ...e3! ab. Schwarz steht aktiver.} 28. d5 $2 {[%emt 0:00:42] [#]} (28. Qd2 $17) 28... e3 $1 $19 {[%emt 0:04:55][%mdl 512]} 29. Nxe3 {[%emt 0:02:47]} (29. Rxe3 Bf5) 29... g3 {[%emt 0:01:31][%csl Gg3][%cal Rh4h2]} 30. h3 {[%emt 0:00:00] [#]} (30. hxg3 $142 Qxg3 31. Ne4 Nxe4 32. Nf1 Rxf1+ 33. Kxf1 cxd5 34. Kg1) 30... Bxh3 $1 {[%emt 0:00:46][%mdl 512]} 31. Rf1 {[%emt 0:01:06] [#]} (31. Rb4 Qxb4) 31... Bxg2 $1 {[%emt 0:00:24][%mdl 512]} 32. Qxg2 {[%emt 0:00:00]} Nh3+ {[%emt 0:00:00] Gewichteter Fehlerwert: Weiß=0.80/Schwarz=0.20 (präzise) .  Verlustzug:     	Weiß=2     	---        Gewinn verpasst:   	---       	Schwarz=1     Fehler:       	Weiß=4     	Schwarz=1     Ungenau:       	Weiß=4     	Schwarz=4     OK:         	Weiß=10    	Schwarz=7     Bester:       	---       	Schwarz=2     Stark:        	---       	Schwarz=2     Brilliant:      	---       	Schwarz=2} 0-1

[Event "Fagernes GM Open Autumn 2024"]
[Site "Fagernes"]
[Date "2024.10.12"]
[Round "8.7"]
[White "Hillarp Persson, Tiger"]
[Black "Kvaloy, Aksel Bu"]
[Result "0-1"]
[ECO "A07"]
[WhiteElo "2455"]
[BlackElo "2484"]
[Annotator "TA"]
[PlyCount "122"]
[EventDate "2024.10.03"]
[EventType "swiss"]
[EventCountry "NOR"]
[SourceTitle "playchess.com"]
[Source "ChessBase"]
[SourceQuality "1"]
[TimeControl "40/6000:2400+30"]

{[%evp 9,122,19,26,16,21,27,12,11,7,6,19,9,16,-67,12,-34,-25,-10,-12,-8,-6,0,-3,-20,0,0,0,-9,0,0,0,0,0,0,0,-7,0,-31,-6,-73,-77,-54,-52,-116,-121,-116,-127,-148,-141,-154,-131,-139,-135,-118,-94,-161,-139,-144,-142,-184,-157,-174,-145,-139,-145,-150,-150,-154,-123,-246,-219,-316,-319,-287,-266,-327,-304,-371,-379,-424,-430,-443,-486,-531,-513,-537,-538,-520,-553,-530,-526,-522,-520,-615,-629,-630,-565,-497,-421,-428,0,-529,-407,-500,-490,-594,-542,-594,-584,-901,-890,-1011,-1005,-995,-977]} 1. Nf3 {[%emt 0:00:00]} d5 {[%emt 0:00:00]} 2. g3 {[%emt 0:00:00]} Nf6 {[%emt 0:00:00]} 3. Bg2 {[%emt 0:00:00]} c6 {[%emt 0:00:00]} 4. O-O {[%emt 0:00:00]} Bg4 {[%emt 0:00:00]} 5. h3 {[%emt 0:00:00]} Bh5 {[%emt 0:00:00] [#]} 6. c4 $1 {[%emt 0:00:00]} e6 {[%emt 0:00:00]} 7. Qb3 {[%emt 0:02:55]} Qb6 {[%emt 0:01:05]} 8. d4 {[%emt 0:00:21] The position is equal.} Be7 {[%emt 0:00:21]} 9. Nc3 {[%emt 0:01:27]} O-O {[%emt 0:00:35]} 10. Bf4 {[%emt 0:18:15]} Nbd7 {[%emt 0:00:55]} 11. Rfe1 {[%emt 0:07:42]} (11. c5 $11 Qa6 12. g4) 11... Bg6 {[%emt 0:01:29]} (11... Bxf3 $1 $15 12. Bxf3 Qxd4) 12. Nd2 {[%emt 0:16:51]} (12. c5 $11 Qxb3 13. axb3) 12... Nh5 {[%emt 0:14:42]} 13. Be3 {[%emt 0:04:37]} f5 {[%emt 0:05:09]} 14. cxd5 {[%emt 0:04:13]} Qxb3 {[%emt 0:00:38]} 15. Nxb3 {[%emt 0:00:01]} exd5 {[%emt 0:00:16]} 16. Bd2 {[%emt 0:02:25]} Bd6 {[%emt 0:01:20]} 17. e3 {[%emt 0:10:27]} Nhf6 {[%emt 0:00:36]} 18. Ne2 {[%emt 0:05:00]} Ne4 {[%emt 0:01:48]} 19. Nf4 {[%emt 0:00:11]} Bf7 {[%emt 0:02:40]} 20. Nd3 {[%emt 0:00:00]} Rfe8 {[%emt 0:09:57]} 21. Rec1 {[%emt 0:02:34]} g5 {[%emt 0:09:21]} 22. Be1 {[%emt 0:02:53]} Bg6 {[%emt 0:02:59]} 23. Bf1 {[%emt 0:00:00]} Nf8 {[%emt 0:08:48]} 24. Kg2 {[%emt 0:03:35] [#]} (24. f4 $1 $11) 24... f4 $1 $17 {[%emt 0:02:03]} 25. gxf4 {[%emt 0:06:46]} gxf4 {[%emt 0:00:00]} 26. exf4 {[%emt 0:00:14]} ({Only move:} 26. Nxf4 $15 Bxf4 27. exf4) 26... Ne6 {[%emt 0:00:00]} 27. f3 {[%emt 0:01:44]} Nf6 $36 {[%emt 0:00:23][%cal Og6d3][%mdl 2048] Black is really pushing. Black is much more active.} 28. Bd2 {[%emt 0:00:00]} Nh5 {[%emt 0:01:06][%cal Og6d3] ...Bxd3! is the strong threat.} 29. Kf2 {[%emt 0:00:00]} Nexf4 {[%emt 0:04:15]} ({Much worse is} 29... Bxf4 $6 30. Nxf4 Nexf4 (30... Nhxf4 31. Rc3 $11) 31. Rc3 $11) 30. Nxf4 {[%emt 0:02:12]} Nxf4 {[%emt 0:00:00]} ({Resist} 30... Bxf4 31. Bxf4 Nxf4 32. Rc3 $15) 31. Nc5 {[%emt 0:00:03]} Nh5 {[%emt 0:04:27]} 32. b4 {[%emt 0:02:31]} (32. Nd7 $17) 32... Re7 {[%emt 0:00:51]} 33. b5 {[%emt 0:01:08]} cxb5 {[%emt 0:03:59]} 34. Bxb5 {[%emt 0:00:00]} a6 {[%emt 0:00:10]} 35. Bf1 {[%emt 0:00:00]} Rf8 {[%emt 0:00:00]} 36. Rc3 {[%emt 0:00:17]} Bg3+ {[%emt 0:03:03]} 37. Kg1 {[%emt 0:00:00] [#]} Bf5 $1 {[%emt 0:00:05]} 38. Nd3 {[%emt 0:00:34]} Bc7 {[%emt 0:03:53]} 39. Ne5 {[%emt 0:00:17]} Ba5 $19 {[%emt 0:02:09]} 40. Rd1 {[%emt 0:00:13]} (40. Rac1 $142) 40... Bxc3 {[%emt 0:00:28]} 41. Bxc3 {[%emt 0:40:37]} Rc8 {[%emt 0:41:56]} 42. Bd2 {[%emt 0:00:00]} Rc2 {[%emt 0:00:00]} 43. a4 {[%emt 0:00:00]} Ra2 {[%emt 0:00:00]} 44. a5 {[%emt 0:00:00]} Rc7 {[%emt 0:00:00]} 45. Kf2 {[%emt 0:00:00]} Rcc2 {[%emt 0:00:00][%csl LRa5,LRd2]} 46. Ke3 {[%emt 0:00:00]} Ra3+ {[%emt 0:00:00]} 47. Bd3 {[%emt 0:00:00]} Bxd3 {[%emt 0:00:00]} ({Weaker is} 47... Bxh3 48. Rh1 $14) 48. Nxd3 {[%emt 0:00:00] [#]} Nf4 $1 {[%emt 0:00:00][%mdl 512]} 49. Kxf4 {[%emt 0:00:00] Threatens to win with Bb4.} (49. Rg1+ Kf7) 49... Rxd3 {[%emt 0:00:00][%mdl 4096] Endgame. KRR-KRB} 50. Rg1+ {[%emt 0:00:00]} Kf7 {[%emt 0:00:00]} 51. Be3 {[%emt 0:00:00]} Re2 {[%emt 0:00:00]} 52. Bc1 {[%emt 0:00:00]} Kf6 {[%emt 0:00:00]} 53. Rg8 {[%emt 0:00:00]} Rc3 {[%emt 0:00:00]} (53... Rxd4+ $2 54. Kg3 $19) 54. Rg1 {[%emt 0:00:00]} Rd3 {[%emt 0:00:00]} 55. Rg8 {[%emt 0:00:00]} Rxd4+ {[%emt 0:00:00]} 56. Kg3 {[%emt 0:00:00]} Rd1 {[%emt 0:00:57] Hoping for ...Rg1+. Black is clearly winning.} 57. Rf8+ {[%emt 0:00:00]} Kg7 {[%emt 0:01:49]} 58. Rc8 {[%emt 0:00:00]} d4 {[%emt 0:00:39]} 59. Kf4 {[%emt 0:00:00]} d3 {[%emt 0:02:00] White must now prevent ...Rc2.} 60. Be3 {[%emt 0:00:00]} Rde1 {[%emt 0:01:20]} 61. Rc7+ {[%emt 0:00:00]} Kf6 {[%emt 0:00:41] Weighted Error Value: White=0.32/Black=0.23 (precise) .  Mistake:       	White=7     	Black=1      Inaccurate:     	White=2     	---        OK:         	White=17    	Black=24     Best:        	White=4     	Black=2      Brilliant:      	---       	Black=1} 0-1

[Event "Fagernes GM Open Autumn 2024"]
[Site "Fagernes"]
[Date "2024.10.12"]
[Round "8.8"]
[White "Sorensen, Hampus"]
[Black "Carlsson, Ludvig"]
[Result "1-0"]
[ECO "D27"]
[WhiteElo "2423"]
[BlackElo "2334"]
[Annotator "TA"]
[PlyCount "119"]
[EventDate "2024.10.03"]
[EventType "swiss"]
[EventCountry "NOR"]
[SourceTitle "playchess.com"]
[Source "ChessBase"]
[SourceQuality "1"]
[TimeControl "40/6000:2400+30"]

{[%evp 44,119,45,10,19,21,25,26,28,15,16,13,17,6,6,0,13,12,12,7,14,2,20,16,16,16,16,16,24,23,54,58,54,61,155,155,277,266,265,260,275,289,388,379,387,379,381,381,469,477,490,489,1067,981,527,12639,12777,12786,12844,12839,12849,12850,12826,12725,12489,6449,12554,12489,10012,10012,29965,29958,29971,29972,29972,29973,6119,6099]} 1. d4 {[%emt 0:00:00]} d5 {[%emt 0:01:55]} 2. c4 {[%emt 0:00:00]} e6 {[%emt 0:00:00]} 3. Nf3 {[%emt 0:00:40]} Nf6 {[%emt 0:00:00]} 4. Nc3 {[%emt 0:00:00]} c5 {[%emt 0:00:17]} 5. e3 {[%emt 0:00:00]} dxc4 {[%emt 0:00:16]} 6. Bxc4 {[%emt 0:00:00]} a6 {[%emt 0:00:00]} 7. O-O {[%emt 0:01:41]} b5 {[%emt 0:00:00]} 8. Be2 {[%emt 0:01:11]} Bb7 {[%emt 0:06:18]} 9. dxc5 {[%emt 0:01:04]} Bxc5 {[%emt 0:03:22]} 10. Qxd8+ {[%emt 0:00:41]} Kxd8 {[%emt 0:00:00]} 11. Nd2 {[%emt 0:00:00] D27: Queen's Gambit Accepted: Classical main line: 7 e4!? and 7 a4.} Nbd7 {[%emt 0:11:58]} 12. Nb3 {[%emt 0:00:55]} Ke7 {[%emt 0:09:37]} 13. Na5 {[%emt 0:28:52]} Ra7 {[%emt 0:00:00]} 14. Nxb7 {[%emt 0:00:16]} Rxb7 {[%emt 0:00:00]} 15. Bd2 {[%emt 0:10:17]} Rd8 $146 {[%emt 0:05:11]} ({Predecessor:} 15... Bd6 16. Rfd1 Rc7 17. Be1 Rb8 18. f3 b4 19. Na4 Nd5 20. Bf2 N5b6 21. Nxb6 Rxb6 {½-½ Navara,D (2693)-Erigaisi,A (2675) Sigeman & Co 27th 2022 (7)}) 16. Rfd1 {[%emt 0:01:56]} Ne5 {[%emt 0:04:41]} 17. Be1 {[%emt 0:00:18]} Rbd7 {[%emt 0:01:31]} 18. Rxd7+ {[%emt 0:00:00]} Rxd7 {[%emt 0:00:00]} 19. Rd1 {[%emt 0:00:00]} Rxd1 {[%emt 0:00:17]} 20. Nxd1 {[%emt 0:00:00]} Nd5 {[%emt 0:01:36]} 21. Nc3 {[%emt 0:08:26]} Nxc3 {[%emt 0:00:00]} 22. Bxc3 {[%emt 0:00:00]} f6 {[%emt 0:00:00]} 23. Kf1 {[%emt 0:07:03]} Nc6 {[%emt 0:01:07]} 24. a3 {[%emt 0:10:53]} Bd6 {[%emt 0:03:32]} 25. f4 {[%emt 0:03:45]} Bc5 {[%emt 0:00:16]} 26. Bd2 {[%emt 0:01:54]} Kd6 {[%emt 0:01:19]} 27. Bd1 {[%emt 0:02:11]} f5 {[%emt 0:03:00]} 28. Bc2 {[%emt 0:03:50]} g6 {[%emt 0:00:59]} 29. Ke2 {[%emt 0:02:15]} a5 {[%emt 0:05:37]} 30. Kd3 {[%emt 0:02:29]} a4 {[%emt 0:00:58]} 31. Bd1 {[%emt 0:00:32]} e5 {[%emt 0:04:08]} 32. e4 {[%emt 0:00:00]} Bg1 {[%emt 0:00:00]} 33. h3 {[%emt 0:00:19]} Bh2 {[%emt 0:00:00]} 34. exf5 {[%emt 0:00:16]} gxf5 {[%emt 0:00:00]} 35. fxe5+ {[%emt 0:00:00]} Bxe5 {[%emt 0:00:00]} 36. b3 {[%emt 0:03:17]} b4 {[%emt 0:04:15]} 37. Bc1 $1 {[%emt 0:00:00]} (37. Bxb4+ $2 Nxb4+ 38. Kd2 Bf4+ 39. Ke2 Bc1 40. bxa4 Nc6 $19 (40... Bxa3 $2 41. Kf3 $19)) (37. bxa4 bxa3 38. Bb3 Kc5 $11) (37. axb4 $2 a3 38. Bh5 a2 $19) 37... axb3 {[%emt 0:01:08]} 38. Bxb3 {[%emt 0:00:00]} Na5 {[%emt 0:00:00]} (38... bxa3 $14 39. Bxa3+ Kd7) 39. Bg8 $16 {[%emt 0:01:21]} b3 {[%emt 0:00:53]} (39... bxa3 $16 40. Bxa3+ Kd7 41. Bxh7 Ke6) 40. Bd2 $1 $18 {[%emt 0:00:00]} b2 {[%emt 0:01:49]} 41. Kc2 $1 {[%emt 0:40:37]} (41. Bxa5 b1=Q+ (41... b1=B+ 42. Ke3 $16) 42. Kc4 Qf1+ 43. Kb4 Kc6 (43... Qxg2 $2 44. Bc4 $19) 44. Bc4 Qb1+ (44... Qxg2 45. Bb5+ Kd6 46. Bc4 Qf3 47. Kb5 Qc6+ 48. Kb4 Qc5+ 49. Kb3 Qxa5 50. Kc2 Qc3+ 51. Kd1 Bf4 52. Ke2 Qe3+ 53. Kf1 Bg3 54. Kg2 Qf2+ 55. Kh1 Qh2#) 45. Bb3 Qe4+ 46. Bc4 Qc2 (46... Qxg2 47. Bb5+ Kd6 48. Bc4 Qf3 49. Bd8 Bc3+ 50. Kb3 Ba5+ 51. Ka4 Bxd8 52. Kb5 Qxa3 53. Be6 Kxe6 54. Kc4 Ba5 55. h4 Qb4+ 56. Kd3 Qe4#) (46... Qxg2 $2 47. Bb5+ Kd6 48. Bb6 $19)) 41... Nc6 {[%emt 0:48:16]} 42. Bxh7 {[%emt 0:01:42]} Ne7 {[%emt 0:00:29]} 43. Bb4+ {[%emt 0:00:00]} Ke6 {[%emt 0:00:00]} 44. a4 {[%emt 0:00:00]} Nc6 {[%emt 0:00:00]} 45. Bg8+ {[%emt 0:00:00]} Kf6 {[%emt 0:00:00]} 46. Ba3 {[%emt 0:00:00]} Nd4+ {[%emt 0:00:00]} 47. Kb1 {[%emt 0:00:00]} ({Not} 47. Kxb2 Nb5+ 48. Kb3 Nxa3 $18) 47... Ne2 {[%emt 0:00:00]} (47... Bb8 $142 48. a5 (48. Kxb2 Ke5 $18) (48. Bxb2 Ba7 $18) 48... Ba7 49. Bxb2 (49. Kxb2 Ke5 $18) 49... Ke5) 48. Bxb2 $18 {[%emt 0:00:00]} Nc3+ {[%emt 0:00:00]} 49. Bxc3 {[%emt 0:00:00]} Bxc3 {[%emt 0:00:00]} 50. Kc2 {[%emt 0:00:00]} Ba5 {[%emt 0:00:00]} 51. Kd3 {[%emt 0:00:00]} Ke5 {[%emt 0:00:00]} 52. Kc4 {[%emt 0:00:00]} Be1 {[%emt 0:00:00]} 53. Bd5 {[%emt 0:00:00]} Kd6 {[%emt 0:00:00]} 54. Bf3 {[%emt 0:00:00]} Ke5 {[%emt 0:00:00]} 55. Kb5 {[%emt 0:00:00]} Kd6 {[%emt 0:00:00]} 56. a5 {[%emt 0:00:00]} Bf2 {[%emt 0:00:00]} 57. a6 {[%emt 0:00:00]} Kc7 {[%emt 0:00:00]} 58. h4 {[%emt 0:00:00]} Kb8 {[%emt 0:00:00]} 59. h5 {[%emt 0:00:00]} Be3 {[%emt 0:00:00]} 60. Kc6 {[%emt 0:00:00]} 1-0